[Event "*** Titled Tuesday Blitz"]
[Site "Chess.com"]
[Date "2020.10.27"]
[Round "6"]
[White "Blitzstream"]
[Black "BursaBBSatranc"]
[Result "1-0"]
[WhiteElo "2718"]
[BlackElo "2507"]
[TimeControl "180+1"]
[EndTime "11:08:47 PDT"]
[Termination "Blitzstream won on time"]

1. e4 {[%clk 0:03:00.9]} 1... e5 {[%clk 0:02:56]} 2. Nf3 {[%clk 0:03:00.6]} 2...
Nf6 {[%clk 0:02:56.2]} 3. Nxe5 {[%clk 0:02:57.6]} 3... d6 {[%clk 0:02:55.9]} 4.
Nf3 {[%clk 0:02:57.4]} 4... Nxe4 {[%clk 0:02:56.4]} 5. d3 {[%clk 0:02:58]} 5...
Nf6 {[%clk 0:02:56.2]} 6. d4 {[%clk 0:02:58.3]} 6... d5 {[%clk 0:02:56.6]} 7.
Bd3 {[%clk 0:02:58.4]} 7... Bd6 {[%clk 0:02:56.6]} 8. O-O {[%clk 0:02:58.3]}
8... O-O {[%clk 0:02:57.2]} 9. Bg5 {[%clk 0:02:55.6]} 9... Bg4 {[%clk
0:02:55.1]} 10. h3 {[%clk 0:02:53.7]} 10... Bh5 {[%clk 0:02:55]} 11. Nbd2 {[%clk
0:02:53.3]} 11... Nbd7 {[%clk 0:02:54.7]} 12. Re1 {[%clk 0:02:53.7]} 12... c6
{[%clk 0:02:53.4]} 13. c3 {[%clk 0:02:54.1]} 13... Qc7 {[%clk 0:02:52.9]} 14.
Qc2 {[%clk 0:02:53.4]} 14... Bg6 {[%clk 0:02:53.5]} 15. Nf1 {[%clk 0:02:48.1]}
15... Ne4 {[%clk 0:02:47.3]} 16. Be3 {[%clk 0:02:47.3]} 16... Rfe8 {[%clk
0:02:47.1]} 17. N3d2 {[%clk 0:02:46]} 17... Nxd2 {[%clk 0:02:45.6]} 18. Nxd2
{[%clk 0:02:43.5]} 18... Bxd3 {[%clk 0:02:45.8]} 19. Qxd3 {[%clk 0:02:43.9]}
19... Nf6 {[%clk 0:02:45.7]} 20. Bg5 {[%clk 0:02:42.6]} 20... Nd7 {[%clk
0:02:28.9]} 21. Nf3 {[%clk 0:02:40.8]} 21... Bf4 {[%clk 0:02:17.5]} 22. Qf5
{[%clk 0:02:37.2]} 22... Bxg5 {[%clk 0:02:12.7]} 23. Nxg5 {[%clk 0:02:37.1]}
23... Nf8 {[%clk 0:02:05.6]} 24. h4 {[%clk 0:02:19.3]} 24... h6 {[%clk
0:02:04.5]} 25. Nf3 {[%clk 0:02:18.7]} 25... Qd7 {[%clk 0:01:56.7]} 26. Qxd7
{[%clk 0:02:06]} 26... Nxd7 {[%clk 0:01:56.7]} 27. Ne5 {[%clk 0:02:06.9]} 27...
Nxe5 {[%clk 0:01:49.7]} 28. dxe5 {[%clk 0:02:06.3]} 28... f6 {[%clk 0:01:46.9]}
29. e6 {[%clk 0:01:57.1]} 29... Kf8 {[%clk 0:01:30.9]} 30. f4 {[%clk 0:01:54.9]}
30... f5 {[%clk 0:01:21.3]} 31. Re5 {[%clk 0:01:53.6]} 31... g6 {[%clk
0:01:21.4]} 32. h5 {[%clk 0:01:53.3]} 32... Kg7 {[%clk 0:01:21.9]} 33. Rae1
{[%clk 0:01:49.1]} 33... Re7 {[%clk 0:01:21.3]} 34. Kf2 {[%clk 0:01:39.7]} 34...
Rae8 {[%clk 0:01:19.2]} 35. Kf3 {[%clk 0:00:56.6]} 35... gxh5 {[%clk 0:00:54.5]}
36. Rxf5 {[%clk 0:00:54.2]} 36... Rxe6 {[%clk 0:00:53.9]} 37. Rxe6 {[%clk
0:00:54.6]} 37... Rxe6 {[%clk 0:00:53.9]} 38. Rxh5 {[%clk 0:00:54.6]} 38... Rd6
{[%clk 0:00:22.3]} 39. Re5 {[%clk 0:00:52.3]} 39... Kf7 {[%clk 0:00:19.4]} 40.
Ke3 {[%clk 0:00:47.9]} 40... Rg6 {[%clk 0:00:19]} 41. Kf3 {[%clk 0:00:47.5]}
41... Rd6 {[%clk 0:00:19.5]} 42. Re2 {[%clk 0:00:41.8]} 42... Rd7 {[%clk
0:00:18.8]} 43. g4 {[%clk 0:00:41.2]} 43... c5 {[%clk 0:00:18.6]} 44. Rd2 {[%clk
0:00:39.5]} 44... Kf6 {[%clk 0:00:18.1]} 45. f5 {[%clk 0:00:35.5]} 45... Kg5
{[%clk 0:00:17.8]} 46. Rh2 {[%clk 0:00:35.4]} 46... Rh7 {[%clk 0:00:14.5]} 47.
Rh5+ {[%clk 0:00:35]} 47... Kf6 {[%clk 0:00:15]} 48. Kf4 {[%clk 0:00:35.2]}
48... d4 {[%clk 0:00:12]} 49. cxd4 {[%clk 0:00:29.9]} 49... cxd4 {[%clk
0:00:12.9]} 50. Rxh6+ {[%clk 0:00:22.7]} 50... Rxh6 {[%clk 0:00:10.5]} 51. g5+
{[%clk 0:00:23.2]} 51... Kg7 {[%clk 0:00:10.7]} 52. gxh6+ {[%clk 0:00:21.6]}
52... Kxh6 {[%clk 0:00:11.6]} 53. Ke4 {[%clk 0:00:22.1]} 53... Kg5 {[%clk
0:00:11.7]} 54. Kxd4 {[%clk 0:00:22.6]} 54... Kxf5 {[%clk 0:00:12.1]} 55. Kd5
{[%clk 0:00:23.3]} 55... Kf4 {[%clk 0:00:10.9]} 56. Kd6 {[%clk 0:00:23.8]} 56...
Ke3 {[%clk 0:00:11.8]} 57. Kc7 {[%clk 0:00:24.3]} 57... b5 {[%clk 0:00:09.6]}
58. Kc6 {[%clk 0:00:24.2]} 58... b4 {[%clk 0:00:08.7]} 59. Kb5 {[%clk
0:00:22.5]} 59... b3 {[%clk 0:00:08.3]} 60. axb3 {[%clk 0:00:18.8]} 60... Kd3
{[%clk 0:00:08.4]} 61. b4 {[%clk 0:00:10.1]} 61... Kd4 {[%clk 0:00:07.8]} 62.
Ka6 {[%clk 0:00:07.3]} 62... Kc4 {[%clk 0:00:08]} 63. b5 {[%clk 0:00:07.3]}
63... Kc5 {[%clk 0:00:08.2]} 64. Ka5 {[%clk 0:00:07.7]} 64... Kc4 {[%clk
0:00:07.7]} 65. Ka6 {[%clk 0:00:03.8]} 65... Kc5 {[%clk 0:00:07.8]} 66. Ka5
{[%clk 0:00:04.3]} 66... Kc4 {[%clk 0:00:08.1]} 67. Ka4 {[%clk 0:00:04.9]} 67...
Kc5 {[%clk 0:00:08.3]} 68. b3 {[%clk 0:00:05.4]} 68... Kd5 {[%clk 0:00:08.4]}
69. Kb4 {[%clk 0:00:05.3]} 69... Kd4 {[%clk 0:00:08.7]} 70. Ka5 {[%clk
0:00:05.2]} 70... Kc5 {[%clk 0:00:08.9]} 71. b4+ {[%clk 0:00:04.4]} 71... Kc4
{[%clk 0:00:09.1]} 72. Ka4 {[%clk 0:00:03.8]} 72... Kd5 {[%clk 0:00:09]} 73. b6
{[%clk 0:00:04.3]} 73... axb6 {[%clk 0:00:08.9]} 74. Kb5 {[%clk 0:00:04.9]} 1-0

[Event "*** Titled Tuesday Blitz"]
[Site "Chess.com"]
[Date "2020.10.27"]
[Round "6"]
[White "andrzej"]
[Black "Khazieva_Elza"]
[Result "0-1"]
[WhiteElo "2304"]
[BlackElo "2478"]
[TimeControl "180+1"]
[EndTime "11:08:50 PDT"]
[Termination "Khazieva_Elza won by checkmate"]

1. d4 {[%clk 0:03:00.9]} 1... Nf6 {[%clk 0:03:00.1]} 2. c4 {[%clk 0:03:01.2]}
2... d6 {[%clk 0:03:00.5]} 3. Nc3 {[%clk 0:02:58.6]} 3... Bf5 {[%clk 0:03:00.9]}
4. g3 {[%clk 0:02:55.6]} 4... c6 {[%clk 0:03:00.1]} 5. Bg2 {[%clk 0:02:55.4]}
5... h6 {[%clk 0:03:00.5]} 6. e4 {[%clk 0:02:54.1]} 6... Bh7 {[%clk 0:02:59.7]}
7. Nge2 {[%clk 0:02:54.1]} 7... Nbd7 {[%clk 0:02:59.4]} 8. O-O {[%clk
0:02:54.1]} 8... e5 {[%clk 0:03:00.1]} 9. f4 {[%clk 0:02:52.5]} 9... Be7 {[%clk
0:02:55.1]} 10. h3 {[%clk 0:02:40.5]} 10... Qc7 {[%clk 0:02:49]} 11. g4 {[%clk
0:02:26.9]} 11... O-O-O {[%clk 0:02:43.2]} 12. Be3 {[%clk 0:02:15.2]} 12... Kb8
{[%clk 0:02:37.9]} 13. Ng3 {[%clk 0:02:08.8]} 13... Nf8 {[%clk 0:02:08.1]} 14.
fxe5 {[%clk 0:01:55.7]} 14... dxe5 {[%clk 0:02:05.1]} 15. d5 {[%clk 0:01:56.2]}
15... N8d7 {[%clk 0:01:22.2]} 16. Qe2 {[%clk 0:01:39.2]} 16... Bc5 {[%clk
0:01:12.1]} 17. Bxc5 {[%clk 0:01:32.4]} 17... Nxc5 {[%clk 0:01:12.4]} 18. b4
{[%clk 0:01:33]} 18... Ncd7 {[%clk 0:00:59.1]} 19. c5 {[%clk 0:01:31]} 19... Nf8
{[%clk 0:00:44.8]} 20. d6 {[%clk 0:01:17.5]} 20... Qc8 {[%clk 0:00:39.8]} 21. b5
{[%clk 0:01:11.3]} 21... Ne6 {[%clk 0:00:37.9]} 22. bxc6 {[%clk 0:00:45.7]}
22... Qxc6 {[%clk 0:00:38.8]} 23. Rfc1 {[%clk 0:00:43.7]} 23... Nd4 {[%clk
0:00:38.9]} 24. Qe3 {[%clk 0:00:40.1]} 24... Qxc5 {[%clk 0:00:35.3]} 25. Kh2
{[%clk 0:00:40.1]} 25... Qxd6 {[%clk 0:00:33.5]} 26. Nd5 {[%clk 0:00:37]} 26...
Rc8 {[%clk 0:00:26.3]} 27. Rab1 {[%clk 0:00:36.7]} 27... Rxc1 {[%clk 0:00:25.2]}
28. Rxc1 {[%clk 0:00:37.6]} 28... Bg6 {[%clk 0:00:15.8]} 29. Rc3 {[%clk
0:00:33.1]} 29... Rc8 {[%clk 0:00:12.4]} 30. Qc1 {[%clk 0:00:32.9]} 30... Rxc3
{[%clk 0:00:11.5]} 31. Qxc3 {[%clk 0:00:33.8]} 31... Qc6 {[%clk 0:00:11.4]} 32.
Qb2 {[%clk 0:00:32.4]} 32... Nxd5 {[%clk 0:00:07.6]} 33. exd5 {[%clk 0:00:32]}
33... Qc2 {[%clk 0:00:07.2]} 34. Qxc2 {[%clk 0:00:28.3]} 34... Nxc2 {[%clk
0:00:07.5]} 35. Kg1 {[%clk 0:00:24.7]} 35... Ne3 {[%clk 0:00:06.6]} 36. Bf3
{[%clk 0:00:24.9]} 36... Kc7 {[%clk 0:00:06.5]} 37. Kf2 {[%clk 0:00:25.4]} 37...
Nc4 {[%clk 0:00:06.7]} 38. Ke2 {[%clk 0:00:23.7]} 38... Nd6 {[%clk 0:00:07]} 39.
Ke3 {[%clk 0:00:24]} 39... Kb6 {[%clk 0:00:07.1]} 40. h4 {[%clk 0:00:24.3]}
40... Kc5 {[%clk 0:00:07.2]} 41. g5 {[%clk 0:00:22]} 41... hxg5 {[%clk
0:00:06.1]} 42. hxg5 {[%clk 0:00:22.9]} 42... Bb1 {[%clk 0:00:06.9]} 43. Nh5
{[%clk 0:00:20.8]} 43... g6 {[%clk 0:00:06.4]} 44. Nf6 {[%clk 0:00:21.2]} 44...
Bxa2 {[%clk 0:00:06.5]} 45. Nd7+ {[%clk 0:00:21.8]} 45... Kb5 {[%clk 0:00:06.2]}
46. Nxe5 {[%clk 0:00:22.2]} 46... Nf5+ {[%clk 0:00:06.7]} 47. Kd3 {[%clk
0:00:19.3]} 47... Nd6 {[%clk 0:00:06.9]} 48. Kc3 {[%clk 0:00:16.4]} 48... Kc5
{[%clk 0:00:07]} 49. Nd7+ {[%clk 0:00:16.6]} 49... Kb5 {[%clk 0:00:06.8]} 50.
Ne5 {[%clk 0:00:16.8]} 50... a5 {[%clk 0:00:06.7]} 51. Be2+ {[%clk 0:00:16.9]}
51... Kb6 {[%clk 0:00:05.4]} 52. Nd7+ {[%clk 0:00:15.1]} 52... Kc7 {[%clk
0:00:05.6]} 53. Nc5 {[%clk 0:00:15.1]} 53... Bxd5 {[%clk 0:00:05.3]} 54. Bg4
{[%clk 0:00:12.3]} 54... Ne4+ {[%clk 0:00:05.1]} 55. Kd4 {[%clk 0:00:10.2]}
55... Nxc5 {[%clk 0:00:05.1]} 56. Kxd5 {[%clk 0:00:10.8]} 56... Nd3 {[%clk
0:00:04.3]} 57. Bf3 {[%clk 0:00:07.8]} 57... a4 {[%clk 0:00:02.6]} 58. Kc4
{[%clk 0:00:08.4]} 58... Ne5+ {[%clk 0:00:02.7]} 59. Kb4 {[%clk 0:00:08.7]}
59... Nxf3 {[%clk 0:00:03.6]} 60. Kxa4 {[%clk 0:00:09.3]} 60... Nxg5 {[%clk
0:00:04.5]} 61. Kb4 {[%clk 0:00:10]} 61... f5 {[%clk 0:00:05.4]} 62. Kc4 {[%clk
0:00:10.9]} 62... Ne6 {[%clk 0:00:06.3]} 63. Kd3 {[%clk 0:00:10.2]} 63... Kd7
{[%clk 0:00:07.2]} 64. Ke2 {[%clk 0:00:11]} 64... Kd6 {[%clk 0:00:07.7]} 65. Kf3
{[%clk 0:00:11.9]} 65... Ke5 {[%clk 0:00:08.6]} 66. Kg3 {[%clk 0:00:12.8]} 66...
g5 {[%clk 0:00:09]} 67. Kf3 {[%clk 0:00:13.7]} 67... g4+ {[%clk 0:00:09.5]} 68.
Kg3 {[%clk 0:00:14.6]} 68... Ng5 {[%clk 0:00:10]} 69. Kh2 {[%clk 0:00:14.4]}
69... f4 {[%clk 0:00:10.5]} 70. Kg2 {[%clk 0:00:15.3]} 70... f3+ {[%clk
0:00:10.8]} 71. Kh1 {[%clk 0:00:16.2]} 71... Kf4 {[%clk 0:00:10.8]} 72. Kg1
{[%clk 0:00:17.1]} 72... Ne4 {[%clk 0:00:10.8]} 73. Kf1 {[%clk 0:00:18]} 73...
g3 {[%clk 0:00:10.7]} 74. Kg1 {[%clk 0:00:18.9]} 74... g2 {[%clk 0:00:07.9]} 75.
Kh2 {[%clk 0:00:17.6]} 75... Ke3 {[%clk 0:00:08]} 76. Kg1 {[%clk 0:00:17.4]}
76... Ke2 {[%clk 0:00:08]} 77. Kh2 {[%clk 0:00:17.2]} 77... Kf2 {[%clk
0:00:08.1]} 78. Kh3 {[%clk 0:00:16.5]} 78... g1=Q {[%clk 0:00:08.5]} 79. Kh4
{[%clk 0:00:16.6]} 79... Qg5+ {[%clk 0:00:08.7]} 80. Kh3 {[%clk 0:00:17.2]}
80... Qg3# {[%clk 0:00:09.6]} 0-1

[Event "*** Titled Tuesday Blitz"]
[Site "Chess.com"]
[Date "2020.10.27"]
[Round "6"]
[White "DinaBelenkaya"]
[Black "WhiteKnight2612"]
[Result "1/2-1/2"]
[WhiteElo "2363"]
[BlackElo "2586"]
[TimeControl "180+1"]
[EndTime "11:09:59 PDT"]
[Termination "Game drawn - timeout vs insufficient material"]

1. e4 {[%clk 0:03:00.9]} 1... e6 {[%clk 0:03:00.9]} 2. Qe2 {[%clk 0:02:53.3]}
2... Ne7 {[%clk 0:02:59.3]} 3. g3 {[%clk 0:02:46.7]} 3... d5 {[%clk 0:02:59.2]}
4. d3 {[%clk 0:02:45.9]} 4... c5 {[%clk 0:02:59.1]} 5. Bg2 {[%clk 0:02:46]} 5...
Nbc6 {[%clk 0:02:59.5]} 6. Nf3 {[%clk 0:02:43.6]} 6... g6 {[%clk 0:02:59.3]} 7.
O-O {[%clk 0:02:41]} 7... Bg7 {[%clk 0:02:59.6]} 8. c3 {[%clk 0:02:36.3]} 8...
O-O {[%clk 0:02:59.8]} 9. e5 {[%clk 0:02:26.8]} 9... b5 {[%clk 0:02:59.8]} 10.
a4 {[%clk 0:02:17.7]} 10... b4 {[%clk 0:02:59.4]} 11. Bg5 {[%clk 0:02:16.8]}
11... a5 {[%clk 0:02:57.7]} 12. Bf6 {[%clk 0:02:15.5]} 12... Ba6 {[%clk
0:02:57.2]} 13. Nbd2 {[%clk 0:02:14.9]} 13... Qc7 {[%clk 0:02:55.6]} 14. Qe3
{[%clk 0:02:11.7]} 14... Nf5 {[%clk 0:02:54.2]} 15. Qe2 {[%clk 0:02:05.3]} 15...
Rfb8 {[%clk 0:02:51]} 16. g4 {[%clk 0:01:58.9]} 16... Nfe7 {[%clk 0:02:50.7]}
17. c4 {[%clk 0:01:59.2]} 17... Rd8 {[%clk 0:02:41.6]} 18. Qe3 {[%clk
0:01:48.3]} 18... Nd4 {[%clk 0:02:30.3]} 19. Nxd4 {[%clk 0:01:46]} 19... cxd4
{[%clk 0:02:31.2]} 20. Qg5 {[%clk 0:01:45.9]} 20... h6 {[%clk 0:02:29.5]} 21.
Qh4 {[%clk 0:01:45.7]} 21... g5 {[%clk 0:02:29.8]} 22. Qh5 {[%clk 0:01:36.9]}
22... Ng6 {[%clk 0:02:26.2]} 23. f4 {[%clk 0:01:17.1]} 23... gxf4 {[%clk
0:02:07.6]} 24. g5 {[%clk 0:01:15.2]} 24... Bxf6 {[%clk 0:01:58]} 25. exf6
{[%clk 0:01:14.2]} 25... Kf8 {[%clk 0:01:52.5]} 26. Qxh6+ {[%clk 0:00:59.2]}
26... Ke8 {[%clk 0:01:52.6]} 27. Qg7 {[%clk 0:00:57.7]} 27... dxc4 {[%clk
0:01:33.5]} 28. Qg8+ {[%clk 0:00:46.4]} 28... Nf8 {[%clk 0:01:33.5]} 29. dxc4
{[%clk 0:00:23.7]} 29... Bb7 {[%clk 0:01:30]} 30. Bxb7 {[%clk 0:00:22.2]} 30...
Qxb7 {[%clk 0:01:30.9]} 31. Rae1 {[%clk 0:00:22.6]} 31... Ra6 {[%clk 0:01:29.7]}
32. Rxf4 {[%clk 0:00:20.8]} 32... d3 {[%clk 0:01:28.6]} 33. Rfe4 {[%clk
0:00:20.7]} 33... Qa7+ {[%clk 0:01:25.3]} 34. Kf1 {[%clk 0:00:19.5]} 34... Qc5
{[%clk 0:01:20.9]} 35. Rf4 {[%clk 0:00:07.2]} 35... Rd4 {[%clk 0:01:20.3]} 36.
Rf3 {[%clk 0:00:06.5]} 36... Rg4 {[%clk 0:01:17]} 37. Rf2 {[%clk 0:00:06.4]}
37... Rxg5 {[%clk 0:01:16.5]} 38. Qh8 {[%clk 0:00:04.6]} 38... Rg6 {[%clk
0:01:16.4]} 39. Qh4 {[%clk 0:00:04.2]} 39... Qg5 {[%clk 0:01:15.7]} 40. Qxg5
{[%clk 0:00:04.3]} 40... Rxg5 {[%clk 0:01:16.1]} 41. Re3 {[%clk 0:00:04.9]}
41... Rd6 {[%clk 0:01:15.1]} 42. Ne4 {[%clk 0:00:04.9]} 42... Rd4 {[%clk
0:01:05.7]} 43. Nxg5 {[%clk 0:00:03.6]} 43... d2 {[%clk 0:01:06.2]} 44. Rxd2
{[%clk 0:00:03.9]} 44... Rxd2 {[%clk 0:01:07.1]} 45. Ne4 {[%clk 0:00:04]} 45...
Rxb2 {[%clk 0:01:05.6]} 46. Nd6+ {[%clk 0:00:04.6]} 46... Kd7 {[%clk 0:01:05.8]}
47. Nxf7 {[%clk 0:00:05.5]} 47... Rd2 {[%clk 0:01:01.9]} 48. Ne5+ {[%clk
0:00:05.6]} 48... Kc7 {[%clk 0:01:01]} 49. f7 {[%clk 0:00:06.4]} 49... Kb6
{[%clk 0:00:51]} 50. Rd3 {[%clk 0:00:06.5]} 50... Rxd3 {[%clk 0:00:24]} 51. Nxd3
{[%clk 0:00:07.4]} 51... Kc6 {[%clk 0:00:24.6]} 52. Ke2 {[%clk 0:00:07.8]} 52...
Kd6 {[%clk 0:00:25.1]} 53. Kd2 {[%clk 0:00:08.3]} 53... Ke7 {[%clk 0:00:25.4]}
54. Ne5 {[%clk 0:00:08.6]} 54... Kf6 {[%clk 0:00:25.5]} 55. Nc6 {[%clk
0:00:05.5]} 55... Kxf7 {[%clk 0:00:25.9]} 56. Nxa5 {[%clk 0:00:06.1]} 56... Nd7
{[%clk 0:00:24.5]} 57. Nb3 {[%clk 0:00:06]} 57... Ke7 {[%clk 0:00:24]} 58. c5
{[%clk 0:00:06.4]} 58... Nb8 {[%clk 0:00:23.3]} 59. Ke3 {[%clk 0:00:06.7]} 59...
Kd7 {[%clk 0:00:23.3]} 60. a5 {[%clk 0:00:07.3]} 60... Kc6 {[%clk 0:00:23.4]}
61. h4 {[%clk 0:00:06.3]} 61... Nd7 {[%clk 0:00:22.4]} 62. Kd4 {[%clk
0:00:06.7]} 62... Kb5 {[%clk 0:00:20.9]} 63. h5 {[%clk 0:00:06.2]} 63... Nf6
{[%clk 0:00:21.1]} 64. h6 {[%clk 0:00:05.5]} 64... e5+ {[%clk 0:00:21.7]} 65.
Kd3 {[%clk 0:00:04.3]} 65... Nh7 {[%clk 0:00:15.7]} 66. Ke4 {[%clk 0:00:03.3]}
66... Kc4 {[%clk 0:00:15.9]} 67. Kxe5 {[%clk 0:00:01.7]} 67... Kxb3 {[%clk
0:00:16.2]} 68. c6 {[%clk 0:00:02.6]} 68... Ka2 {[%clk 0:00:16]} 69. c7 {[%clk
0:00:03.5]} 69... b3 {[%clk 0:00:16.9]} 70. c8=Q {[%clk 0:00:03.8]} 70... b2
{[%clk 0:00:17.8]} 71. Qb8 {[%clk 0:00:04.5]} 71... Ng5 {[%clk 0:00:17]} 72. Kf5
{[%clk 0:00:03.2]} 72... Nf7 {[%clk 0:00:17.9]} 73. Kg6 {[%clk 0:00:02.9]} 73...
Ne5+ {[%clk 0:00:18.3]} 74. Kg7 {[%clk 0:00:02.8]} 74... Nc6 {[%clk 0:00:19.2]}
75. Qxb2+ {[%clk 0:00:02.1]} 75... Kxb2 {[%clk 0:00:18.9]} 76. h7 {[%clk
0:00:03]} 76... Nxa5 {[%clk 0:00:17.7]} 77. h8=Q {[%clk 0:00:03.3]} 77... Nb3
{[%clk 0:00:18.6]} 78. Kg8+ {[%clk 0:00:03.8]} 78... Ka3 {[%clk 0:00:19.5]} 79.
Qh7 {[%clk 0:00:04.4]} 79... Ka4 {[%clk 0:00:20.4]} 80. Qh2 {[%clk 0:00:04.7]}
80... Ka3 {[%clk 0:00:21.3]} 81. Qh3 {[%clk 0:00:05.1]} 81... Kb4 {[%clk
0:00:22.2]} 82. Kf8 {[%clk 0:00:05.4]} 82... Nc5 {[%clk 0:00:23.1]} 83. Ke8
{[%clk 0:00:06]} 83... Kc4 {[%clk 0:00:24]} 84. Kd8 {[%clk 0:00:06.4]} 84... Ne4
{[%clk 0:00:24.1]} 85. Kc8 {[%clk 0:00:07.3]} 85... Kd4 {[%clk 0:00:25]} 86. Kb7
{[%clk 0:00:06.8]} 86... Ke5 {[%clk 0:00:25.9]} 87. Qg4 {[%clk 0:00:06.7]} 87...
Nf6 {[%clk 0:00:26.3]} 88. Qg5+ {[%clk 0:00:06.8]} 88... Ke6 {[%clk 0:00:27.2]}
89. Kb6 {[%clk 0:00:06.3]} 89... Nd5+ {[%clk 0:00:27.4]} 90. Kc5 {[%clk
0:00:05.5]} 90... Nf6 {[%clk 0:00:27.7]} 91. Qe3+ {[%clk 0:00:05.5]} 91... Kf5
{[%clk 0:00:27.8]} 92. Kd6 {[%clk 0:00:04.9]} 92... Ne4+ {[%clk 0:00:27.6]} 93.
Kd5 {[%clk 0:00:05]} 93... Nf6+ {[%clk 0:00:28]} 94. Kd4 {[%clk 0:00:05.3]}
94... Ng4 {[%clk 0:00:28.1]} 95. Qf3+ {[%clk 0:00:04.5]} 95... Kg5 {[%clk
0:00:28.3]} 96. Ke4 {[%clk 0:00:03.4]} 96... Nf6+ {[%clk 0:00:28]} 97. Ke3
{[%clk 0:00:03.5]} 97... Ng4+ {[%clk 0:00:27.8]} 98. Ke2 {[%clk 0:00:02.1]}
98... Ne5 {[%clk 0:00:26.9]} 99. Qg3+ {[%clk 0:00:02.3]} 99... Kf5 {[%clk
0:00:26.8]} 100. Kd2 {[%clk 0:00:03.2]} 100... Ng4 {[%clk 0:00:26.3]} 101. Kd3
{[%clk 0:00:03]} 101... Ne5+ {[%clk 0:00:26.5]} 102. Kd4 {[%clk 0:00:03.5]}
102... Ng6 {[%clk 0:00:25.5]} 103. Qf3+ {[%clk 0:00:03.5]} 103... Kg5 {[%clk
0:00:25.7]} 104. Kd5 {[%clk 0:00:03.4]} 104... Nf4+ {[%clk 0:00:25.3]} 105. Ke4
{[%clk 0:00:03.3]} 105... Ng6 {[%clk 0:00:25.5]} 106. Qf5+ {[%clk 0:00:04.2]}
106... Kh6 {[%clk 0:00:25.8]} 107. Qe6 {[%clk 0:00:02.3]} 107... Kg7 {[%clk
0:00:26.2]} 108. Qd7+ {[%clk 0:00:02.1]} 108... Kf6 {[%clk 0:00:26]} 1/2-1/2